[Event "*** Titled Tuesday Blitz"]
[Site "Chess.com"]
[Date "2021.04.27"]
[Round "4"]
[White "csati17"]
[Black "ajdemipopushi"]
[Result "1-0"]
[WhiteElo "2583"]
[BlackElo "2337"]
[TimeControl "180+1"]
[EndTime "10:39:52 PDT"]
[Termination "csati17 won on time"]

1. c4 {[%clk 0:03:00.9]} 1... c5 {[%clk 0:02:59]} 2. Nc3 {[%clk 0:03:00.4]} 2...
g6 {[%clk 0:02:59.4]} 3. g3 {[%clk 0:03:00.5]} 3... Bg7 {[%clk 0:03:00]} 4. Bg2
{[%clk 0:03:01.4]} 4... Nc6 {[%clk 0:03:00.3]} 5. e4 {[%clk 0:03:00.6]} 5... e6
{[%clk 0:03:00.1]} 6. Nge2 {[%clk 0:03:01.5]} 6... Nge7 {[%clk 0:03:00]} 7. O-O
{[%clk 0:03:02.1]} 7... O-O {[%clk 0:03:00]} 8. d3 {[%clk 0:03:03]} 8... d6
{[%clk 0:02:59]} 9. Rb1 {[%clk 0:03:03.4]} 9... b6 {[%clk 0:02:58.9]} 10. a3
{[%clk 0:03:03.3]} 10... Bb7 {[%clk 0:02:58]} 11. b4 {[%clk 0:03:03.9]} 11...
Qd7 {[%clk 0:02:58.4]} 12. Be3 {[%clk 0:02:58.1]} 12... Nd4 {[%clk 0:02:58.1]}
13. Qd2 {[%clk 0:02:58]} 13... f5 {[%clk 0:02:53.8]} 14. Bh6 {[%clk 0:02:56.2]}
14... fxe4 {[%clk 0:02:28.1]} 15. Bxg7 {[%clk 0:02:50.4]} 15... Kxg7 {[%clk
0:02:26.6]} 16. Nxd4 {[%clk 0:02:34.1]} 16... cxd4 {[%clk 0:02:16.4]} 17. Nxe4
{[%clk 0:02:32.8]} 17... e5 {[%clk 0:02:02.7]} 18. Rbc1 {[%clk 0:01:59.5]} 18...
Rac8 {[%clk 0:01:53.7]} 19. f4 {[%clk 0:01:54.7]} 19... Nf5 {[%clk 0:01:52.8]}
20. Bh3 {[%clk 0:01:54.8]} 20... Qe7 {[%clk 0:01:43]} 21. Rce1 {[%clk
0:01:38.8]} 21... Rce8 {[%clk 0:01:41.5]} 22. Bxf5 {[%clk 0:01:33.5]} 22... Rxf5
{[%clk 0:00:59.1]} 23. g4 {[%clk 0:00:48.7]} 23... Rf7 {[%clk 0:00:52.4]} 24. f5
{[%clk 0:00:47.1]} 24... gxf5 {[%clk 0:00:50.6]} 25. gxf5 {[%clk 0:00:48]} 25...
Kh8 {[%clk 0:00:48.8]} 26. Kh1 {[%clk 0:00:47.6]} 26... Rg8 {[%clk 0:00:44.7]}
27. Qh6 {[%clk 0:00:46]} 27... Qg5 {[%clk 0:00:36]} 28. Qh3 {[%clk 0:00:33.7]}
28... Qg4 {[%clk 0:00:19]} 29. Qxg4 {[%clk 0:00:19.7]} 29... Rxg4 {[%clk
0:00:18.5]} 30. Rf3 {[%clk 0:00:20.6]} 30... d5 {[%clk 0:00:09.3]} 31. Nd6
{[%clk 0:00:17.8]} 31... Rfg7 {[%clk 0:00:07.9]} 32. Nxb7 {[%clk 0:00:17.3]}
32... Rxb7 {[%clk 0:00:06.7]} 33. cxd5 {[%clk 0:00:17.6]} 33... Re7 {[%clk
0:00:05.5]} 34. f6 {[%clk 0:00:17.2]} 34... Re8 {[%clk 0:00:05.7]} 35. f7 {[%clk
0:00:17]} 35... Rf8 {[%clk 0:00:06]} 36. Rxe5 {[%clk 0:00:17.5]} 36... Kg7
{[%clk 0:00:05.9]} 37. Re7 {[%clk 0:00:15]} 37... Rg6 {[%clk 0:00:04.4]} 38. Rd7
{[%clk 0:00:13.3]} 38... a6 {[%clk 0:00:02.7]} 39. h3 {[%clk 0:00:12.9]} 39...
b5 {[%clk 0:00:03.1]} 40. Kh2 {[%clk 0:00:12.6]} 40... Rf6 {[%clk 0:00:03.5]}
41. Rg3+ {[%clk 0:00:10.1]} 41... Kh6 {[%clk 0:00:03.2]} 42. Rg4 {[%clk
0:00:08]} 42... R8xf7 {[%clk 0:00:03.3]} 43. Rxf7 {[%clk 0:00:08.5]} 43... Rxf7
{[%clk 0:00:03.7]} 44. Rxd4 {[%clk 0:00:09.4]} 44... Rf2+ {[%clk 0:00:03.8]} 45.
Kg3 {[%clk 0:00:09.6]} 45... Rd2 {[%clk 0:00:03.9]} 46. d6 {[%clk 0:00:09.9]}
1-0

[Event "*** Titled Tuesday Blitz"]
[Site "Chess.com"]
[Date "2021.04.27"]
[Round "4"]
[White "AniJak"]
[Black "ErikRonka"]
[Result "0-1"]
[WhiteElo "2289"]
[BlackElo "2477"]
[TimeControl "180+1"]
[EndTime "10:39:56 PDT"]
[Termination "ErikRonka won on time"]

1. e4 {[%clk 0:03:00.9]} 1... c6 {[%clk 0:03:00.1]} 2. d4 {[%clk 0:03:00.6]}
2... d5 {[%clk 0:03:01]} 3. e5 {[%clk 0:03:00.9]} 3... c5 {[%clk 0:03:01.1]} 4.
dxc5 {[%clk 0:03:00.6]} 4... e6 {[%clk 0:03:01.5]} 5. a3 {[%clk 0:03:00.4]} 5...
Nc6 {[%clk 0:03:01.5]} 6. Nf3 {[%clk 0:02:59.2]} 6... Bxc5 {[%clk 0:03:00.8]} 7.
b4 {[%clk 0:02:59.1]} 7... Bb6 {[%clk 0:03:01.3]} 8. Bb2 {[%clk 0:02:57.3]} 8...
Nge7 {[%clk 0:03:01.4]} 9. Bd3 {[%clk 0:02:57.1]} 9... Ng6 {[%clk 0:03:01.9]}
10. O-O {[%clk 0:02:56.5]} 10... Nf4 {[%clk 0:03:02.4]} 11. Nbd2 {[%clk
0:02:48.6]} 11... O-O {[%clk 0:02:58]} 12. g3 {[%clk 0:02:48.1]} 12... Nxd3
{[%clk 0:02:53.6]} 13. cxd3 {[%clk 0:02:49]} 13... Bd7 {[%clk 0:02:54.1]} 14.
Nb3 {[%clk 0:02:48.3]} 14... Rc8 {[%clk 0:02:34.3]} 15. Re1 {[%clk 0:02:47.3]}
15... a6 {[%clk 0:02:25]} 16. Rc1 {[%clk 0:02:40.9]} 16... Ba7 {[%clk
0:02:19.8]} 17. Qd2 {[%clk 0:02:38.8]} 17... Ne7 {[%clk 0:02:12.7]} 18. Nbd4
{[%clk 0:02:22.2]} 18... Rxc1 {[%clk 0:02:05.6]} 19. Rxc1 {[%clk 0:02:20.4]}
19... Qb8 {[%clk 0:02:05.7]} 20. Kf1 {[%clk 0:01:51.7]} 20... Rc8 {[%clk
0:02:04.6]} 21. Ke2 {[%clk 0:01:47.6]} 21... Ng6 {[%clk 0:02:01.3]} 22. Rxc8+
{[%clk 0:01:34.6]} 22... Qxc8 {[%clk 0:01:59.3]} 23. Qc2 {[%clk 0:01:31.4]}
23... Qb8 {[%clk 0:01:52.6]} 24. Nb3 {[%clk 0:01:27.7]} 24... Bb5 {[%clk
0:01:45.9]} 25. Qc3 {[%clk 0:00:50.7]} 25... h6 {[%clk 0:01:40.9]} 26. Nbd4
{[%clk 0:00:48.4]} 26... Bd7 {[%clk 0:01:38.9]} 27. Nc2 {[%clk 0:00:47.4]} 27...
Qd8 {[%clk 0:01:36.7]} 28. Ncd4 {[%clk 0:00:36.6]} 28... Bb8 {[%clk 0:01:36]}
29. Nb3 {[%clk 0:00:33.8]} 29... Ne7 {[%clk 0:01:34.4]} 30. Nc5 {[%clk
0:00:32.7]} 30... Bc6 {[%clk 0:01:33.4]} 31. Qb3 {[%clk 0:00:26.9]} 31... Nf5
{[%clk 0:01:32.4]} 32. a4 {[%clk 0:00:19.4]} 32... Qe8 {[%clk 0:01:25.1]} 33. b5
{[%clk 0:00:16.8]} 33... axb5 {[%clk 0:01:25.9]} 34. axb5 {[%clk 0:00:17.1]}
34... Bxb5 {[%clk 0:01:26.1]} 35. Nxb7 {[%clk 0:00:17.4]} 35... g5 {[%clk
0:01:13.3]} 36. Nc5 {[%clk 0:00:13.4]} 36... Ba7 {[%clk 0:01:10.4]} 37. Qb4
{[%clk 0:00:09.7]} 37... Qc6 {[%clk 0:01:05.8]} 38. Ba3 {[%clk 0:00:09.6]} 38...
Kh7 {[%clk 0:00:49.1]} 39. Nd4 {[%clk 0:00:09.9]} 39... Nxd4+ {[%clk 0:00:46.3]}
40. Qxd4 {[%clk 0:00:10]} 40... Qc7 {[%clk 0:00:45.2]} 41. Qb4 {[%clk
0:00:09.6]} 41... Qxe5+ {[%clk 0:00:44.3]} 42. Kd2 {[%clk 0:00:10]} 42... Bc6
{[%clk 0:00:37]} 43. Qa5 {[%clk 0:00:08.7]} 43... Bb8 {[%clk 0:00:33.3]} 44. Qd8
{[%clk 0:00:08.3]} 44... Bd6 {[%clk 0:00:27.8]} 45. Nxe6 {[%clk 0:00:06.6]}
45... Bxa3 {[%clk 0:00:18.7]} 46. Nc7 {[%clk 0:00:04.6]} 46... Bb4+ {[%clk
0:00:17.8]} 47. Kc2 {[%clk 0:00:04.7]} 47... Qc3+ {[%clk 0:00:16.5]} 48. Kb1
{[%clk 0:00:04.1]} 48... Qb3+ {[%clk 0:00:16.6]} 49. Kc1 {[%clk 0:00:03.9]}
49... Ba4 {[%clk 0:00:13.3]} 0-1

[Event "*** Titled Tuesday Blitz"]
[Site "Chess.com"]
[Date "2021.04.27"]
[Round "4"]
[White "KubaGepard"]
[Black "monikarozman"]
[Result "1-0"]
[WhiteElo "2411"]
[BlackElo "2180"]
[TimeControl "180+1"]
[EndTime "10:39:56 PDT"]
[Termination "KubaGepard won on time"]

1. e4 {[%clk 0:03:00.9]} 1... c5 {[%clk 0:02:58.5]} 2. Ne2 {[%clk 0:02:58.6]}
2... Nc6 {[%clk 0:02:56.8]} 3. Nbc3 {[%clk 0:02:57.1]} 3... Nf6 {[%clk
0:02:53.4]} 4. d4 {[%clk 0:02:56.6]} 4... cxd4 {[%clk 0:02:53.3]} 5. Nxd4 {[%clk
0:02:57.3]} 5... e5 {[%clk 0:02:52.2]} 6. Ndb5 {[%clk 0:02:57.1]} 6... d6 {[%clk
0:02:52]} 7. Bg5 {[%clk 0:02:56.3]} 7... a6 {[%clk 0:02:51.9]} 8. Na3 {[%clk
0:02:56.7]} 8... b5 {[%clk 0:02:52.2]} 9. Nd5 {[%clk 0:02:57.1]} 9... Be7 {[%clk
0:02:51.9]} 10. Bxf6 {[%clk 0:02:57.3]} 10... Bxf6 {[%clk 0:02:52.2]} 11. c3
{[%clk 0:02:57.8]} 11... Bg5 {[%clk 0:02:42.5]} 12. Nc2 {[%clk 0:02:52.4]} 12...
Rb8 {[%clk 0:02:42.8]} 13. a3 {[%clk 0:02:48.1]} 13... O-O {[%clk 0:02:40.4]}
14. Ncb4 {[%clk 0:02:43.8]} 14... Bb7 {[%clk 0:02:17]} 15. h4 {[%clk 0:02:39.4]}
15... Bh6 {[%clk 0:02:16.1]} 16. g3 {[%clk 0:02:37.6]} 16... a5 {[%clk
0:02:10.9]} 17. Nc2 {[%clk 0:02:24.9]} 17... Bc8 {[%clk 0:02:00.5]} 18. Bh3
{[%clk 0:02:20.7]} 18... Be6 {[%clk 0:01:56.2]} 19. Kf1 {[%clk 0:01:59.8]} 19...
Qd7 {[%clk 0:01:37.2]} 20. Kg2 {[%clk 0:01:51.7]} 20... f5 {[%clk 0:01:30.1]}
21. exf5 {[%clk 0:01:45.3]} 21... Bxf5 {[%clk 0:01:30]} 22. Nce3 {[%clk
0:01:42.8]} 22... Be4+ {[%clk 0:01:16.4]} 23. f3 {[%clk 0:01:26.3]} 23... Qf7
{[%clk 0:01:16.1]} 24. Rf1 {[%clk 0:01:25.3]} 24... Bg6 {[%clk 0:01:11.2]} 25.
Ng4 {[%clk 0:01:17.6]} 25... Kh8 {[%clk 0:01:05.3]} 26. Nxh6 {[%clk 0:01:10.6]}
26... gxh6 {[%clk 0:01:06.2]} 27. Qd2 {[%clk 0:01:04.9]} 27... Qg7 {[%clk
0:00:59.7]} 28. Rae1 {[%clk 0:00:59.5]} 28... Rb7 {[%clk 0:00:42.8]} 29. Ne3
{[%clk 0:00:55.2]} 29... Rg8 {[%clk 0:00:30.4]} 30. Be6 {[%clk 0:00:48.4]} 30...
Bf7 {[%clk 0:00:27.9]} 31. Nf5 {[%clk 0:00:45.6]} 31... Qg6 {[%clk 0:00:20.4]}
32. Bd5 {[%clk 0:00:28.1]} 32... Qxf5 {[%clk 0:00:16.6]} 33. Bxc6 {[%clk
0:00:26.5]} 33... Rb6 {[%clk 0:00:12.1]} 34. Be4 {[%clk 0:00:26.3]} 34... Qf6
{[%clk 0:00:11]} 35. Kh2 {[%clk 0:00:19.3]} 35... Bc4 {[%clk 0:00:10.6]} 36. Bd3
{[%clk 0:00:18.8]} 36... Be6 {[%clk 0:00:10.5]} 37. Bc2 {[%clk 0:00:17.3]} 37...
Bc8 {[%clk 0:00:10.1]} 38. Qf2 {[%clk 0:00:17.3]} 38... d5 {[%clk 0:00:08.7]}
39. Bb1 {[%clk 0:00:17.3]} 39... Qe6 {[%clk 0:00:08.6]} 40. Qg2 {[%clk
0:00:15.4]} 40... Rb7 {[%clk 0:00:08.6]} 41. f4 {[%clk 0:00:15.5]} 41... e4
{[%clk 0:00:08.5]} 42. f5 {[%clk 0:00:15.9]} 42... Qe5 {[%clk 0:00:08.6]} 43.
Rf4 {[%clk 0:00:15.7]} 43... Rbg7 {[%clk 0:00:08.5]} 44. Re3 {[%clk 0:00:15.4]}
44... d4 {[%clk 0:00:08.3]} 45. cxd4 {[%clk 0:00:15.4]} 45... Qxd4 {[%clk
0:00:08.6]} 46. Rexe4 {[%clk 0:00:15.5]} 46... Qd6 {[%clk 0:00:06.2]} 47. f6
{[%clk 0:00:15.2]} 47... Rf7 {[%clk 0:00:05.8]} 48. Qf2 {[%clk 0:00:15.4]} 48...
Bb7 {[%clk 0:00:05.5]} 49. Re7 {[%clk 0:00:15.3]} 49... Qc6 {[%clk 0:00:04.9]}
50. Be4 {[%clk 0:00:14.8]} 1-0

[Event "*** Titled Tuesday Blitz"]
[Site "Chess.com"]
[Date "2021.04.27"]
[Round "4"]
[White "mary-sanna"]
[Black "Vigorito-NE"]
[Result "0-1"]
[WhiteElo "2137"]
[BlackElo "2428"]
[TimeControl "180+1"]
[EndTime "10:39:58 PDT"]
[Termination "Vigorito-NE won on time"]

1. d4 {[%clk 0:03:00.9]} 1... d5 {[%clk 0:02:57.9]} 2. Bf4 {[%clk 0:03:00.8]}
2... Nf6 {[%clk 0:02:57.3]} 3. e3 {[%clk 0:03:01.1]} 3... c5 {[%clk 0:02:57]} 4.
c3 {[%clk 0:03:01]} 4... Nc6 {[%clk 0:02:55]} 5. Nd2 {[%clk 0:03:00]} 5... cxd4
{[%clk 0:02:54.1]} 6. exd4 {[%clk 0:02:59.9]} 6... Bf5 {[%clk 0:02:51.9]} 7.
Ngf3 {[%clk 0:02:56.7]} 7... e6 {[%clk 0:02:51.1]} 8. Ne5 {[%clk 0:02:41.8]}
8... Nxe5 {[%clk 0:02:49.7]} 9. dxe5 {[%clk 0:02:35.4]} 9... Nd7 {[%clk
0:02:49.3]} 10. Nf3 {[%clk 0:02:33.1]} 10... Be7 {[%clk 0:02:44.5]} 11. Bd3
{[%clk 0:02:31.9]} 11... Bxd3 {[%clk 0:02:41.8]} 12. Qxd3 {[%clk 0:02:32.8]}
12... Nc5 {[%clk 0:02:41.2]} 13. Qe2 {[%clk 0:02:18.5]} 13... O-O {[%clk
0:02:36]} 14. O-O {[%clk 0:02:18.1]} 14... Rc8 {[%clk 0:02:29.9]} 15. Rfd1
{[%clk 0:02:11.9]} 15... Qc7 {[%clk 0:02:26.6]} 16. Rac1 {[%clk 0:02:05.2]}
16... a6 {[%clk 0:02:23.3]} 17. c4 {[%clk 0:02:02]} 17... dxc4 {[%clk
0:02:22.1]} 18. Rxc4 {[%clk 0:02:00.8]} 18... b5 {[%clk 0:02:20.5]} 19. Rc2
{[%clk 0:02:00.5]} 19... Qb7 {[%clk 0:02:17.3]} 20. h3 {[%clk 0:01:52.3]} 20...
h6 {[%clk 0:02:11.7]} 21. Rcd2 {[%clk 0:01:44.6]} 21... Rfd8 {[%clk 0:02:05.8]}
22. Rxd8+ {[%clk 0:01:34.1]} 22... Rxd8 {[%clk 0:02:06.7]} 23. Rxd8+ {[%clk
0:01:33.9]} 23... Bxd8 {[%clk 0:02:05.9]} 24. Qd2 {[%clk 0:01:32.7]} 24... Qd7
{[%clk 0:01:53]} 25. Qxd7 {[%clk 0:01:16.8]} 25... Nxd7 {[%clk 0:01:52.3]} 26.
Kf1 {[%clk 0:01:16.5]} 26... Bc7 {[%clk 0:01:45.9]} 27. Ke2 {[%clk 0:01:14.8]}
27... f6 {[%clk 0:01:39.8]} 28. Bg3 {[%clk 0:01:14.6]} 28... f5 {[%clk
0:01:36.7]} 29. Nd4 {[%clk 0:01:09.7]} 29... Nf8 {[%clk 0:01:30.9]} 30. b3
{[%clk 0:01:02.3]} 30... Kf7 {[%clk 0:01:30.4]} 31. a4 {[%clk 0:01:01.2]} 31...
bxa4 {[%clk 0:01:25.6]} 32. bxa4 {[%clk 0:01:01.1]} 32... g5 {[%clk 0:01:25.3]}
33. f4 {[%clk 0:00:59.7]} 33... Bb6 {[%clk 0:01:16.2]} 34. Nf3 {[%clk
0:00:51.1]} 34... gxf4 {[%clk 0:01:08.7]} 35. Bxf4 {[%clk 0:00:52]} 35... h5
{[%clk 0:01:09.4]} 36. Bd2 {[%clk 0:00:43.5]} 36... Ng6 {[%clk 0:01:06.6]} 37.
Ng5+ {[%clk 0:00:42.1]} 37... Ke7 {[%clk 0:01:05.7]} 38. Bb4+ {[%clk 0:00:42.1]}
38... Kd7 {[%clk 0:01:05.7]} 39. Nf3 {[%clk 0:00:39.6]} 39... Bc7 {[%clk
0:01:01.7]} 40. Bc3 {[%clk 0:00:35.9]} 40... Kc6 {[%clk 0:01:01.9]} 41. Nd4+
{[%clk 0:00:34.6]} 41... Kd5 {[%clk 0:01:01.6]} 42. Nb3 {[%clk 0:00:18.1]} 42...
Nxe5 {[%clk 0:00:58.5]} 43. Bb4 {[%clk 0:00:14.8]} 43... Kc4 {[%clk 0:00:54]}
44. Ba5 {[%clk 0:00:11.8]} 44... Bd6 {[%clk 0:00:43.1]} 45. Nd2+ {[%clk
0:00:10.5]} 45... Kd5 {[%clk 0:00:42.5]} 46. Bb6 {[%clk 0:00:08.5]} 46... Bb4
{[%clk 0:00:34.1]} 47. Nb3 {[%clk 0:00:07.2]} 47... Nc4 {[%clk 0:00:25.6]} 48.
Bc7 {[%clk 0:00:06.2]} 48... e5 {[%clk 0:00:24.1]} 49. Nc1 {[%clk 0:00:05.2]}
49... e4 {[%clk 0:00:22.5]} 50. Na2 {[%clk 0:00:04.4]} 50... Bc5 {[%clk
0:00:19.8]} 51. Nc3+ {[%clk 0:00:04.1]} 51... Kc6 {[%clk 0:00:18.2]} 52. Bd8
{[%clk 0:00:03.2]} 52... Bd4 {[%clk 0:00:17.9]} 53. Nd1 {[%clk 0:00:02.3]} 53...
Kd5 {[%clk 0:00:16.9]} 54. Bc7 {[%clk 0:00:01.4]} 54... Nb2 {[%clk 0:00:16.5]}
0-1

[Event "*** Titled Tuesday Blitz"]
[Site "Chess.com"]
[Date "2021.04.27"]
[Round "4"]
[White "SargissyanSargis"]
[Black "RafalBRC"]
[Result "0-1"]
[WhiteElo "2355"]
[BlackElo "2180"]
[TimeControl "180+1"]
[EndTime "10:39:58 PDT"]
[Termination "RafalBRC won by checkmate"]

1. e4 {[%clk 0:02:48]} 1... c5 {[%clk 0:02:57.2]} 2. Nf3 {[%clk 0:02:47.1]} 2...
Nc6 {[%clk 0:02:58.1]} 3. d4 {[%clk 0:02:46.6]} 3... cxd4 {[%clk 0:02:59]} 4.
Nxd4 {[%clk 0:02:47.4]} 4... Nf6 {[%clk 0:02:59.3]} 5. Nc3 {[%clk 0:02:47]} 5...
e5 {[%clk 0:02:59.1]} 6. Ndb5 {[%clk 0:02:44.8]} 6... d6 {[%clk 0:02:59.6]} 7.
Bg5 {[%clk 0:02:43.9]} 7... a6 {[%clk 0:02:55.1]} 8. Na3 {[%clk 0:02:43.6]} 8...
b5 {[%clk 0:02:55.7]} 9. Nd5 {[%clk 0:02:42.9]} 9... Be7 {[%clk 0:02:52.7]} 10.
Bxf6 {[%clk 0:02:37.2]} 10... Bxf6 {[%clk 0:02:52.4]} 11. c3 {[%clk 0:02:36.6]}
11... O-O {[%clk 0:02:52.8]} 12. Nc2 {[%clk 0:02:35.6]} 12... Bg5 {[%clk
0:02:53.2]} 13. a4 {[%clk 0:02:30.5]} 13... Rb8 {[%clk 0:02:49.2]} 14. axb5
{[%clk 0:02:28.5]} 14... axb5 {[%clk 0:02:50.1]} 15. Nce3 {[%clk 0:02:18.9]}
15... f5 {[%clk 0:02:35.7]} 16. exf5 {[%clk 0:02:16]} 16... Bxf5 {[%clk
0:02:30]} 17. Nxf5 {[%clk 0:02:12]} 17... Rxf5 {[%clk 0:02:29.4]} 18. Bd3 {[%clk
0:02:10]} 18... Rf8 {[%clk 0:02:04.2]} 19. O-O {[%clk 0:02:04.9]} 19... Ne7
{[%clk 0:02:02.3]} 20. Be4 {[%clk 0:01:35.1]} 20... Kh8 {[%clk 0:01:52]} 21. Qh5
{[%clk 0:01:24.8]} 21... Bh6 {[%clk 0:01:47]} 22. Rad1 {[%clk 0:01:19.2]} 22...
Nxd5 {[%clk 0:01:44.7]} 23. Rxd5 {[%clk 0:01:12.7]} 23... Qf6 {[%clk 0:01:44.2]}
24. f3 {[%clk 0:01:02.1]} 24... b4 {[%clk 0:01:40.2]} 25. c4 {[%clk 0:00:55]}
25... b3 {[%clk 0:01:33.2]} 26. Rfd1 {[%clk 0:00:54.6]} 26... Rb6 {[%clk
0:01:26.7]} 27. Kh1 {[%clk 0:00:40.1]} 27... Rc8 {[%clk 0:01:14]} 28. c5 {[%clk
0:00:32.5]} 28... dxc5 {[%clk 0:00:48.3]} 29. Qg4 {[%clk 0:00:23.6]} 29... Rbb8
{[%clk 0:00:40.7]} 30. Qd7 {[%clk 0:00:18.5]} 30... Be3 {[%clk 0:00:26.9]} 31.
Rd6 {[%clk 0:00:17.7]} 31... Qf8 {[%clk 0:00:21.1]} 32. Qh3 {[%clk 0:00:10.5]}
32... h6 {[%clk 0:00:18.5]} 33. Qh5 {[%clk 0:00:08.8]} 33... Qe8 {[%clk
0:00:11.6]} 34. Bg6 {[%clk 0:00:07.5]} 34... Qf8 {[%clk 0:00:11.7]} 35. Qxe5
{[%clk 0:00:06.4]} 35... Bd4 {[%clk 0:00:10.6]} 36. Qd5 {[%clk 0:00:04.6]} 36...
Rd8 {[%clk 0:00:09.7]} 37. Rxd8 {[%clk 0:00:03.9]} 37... Rxd8 {[%clk 0:00:10.6]}
38. Qe4 {[%clk 0:00:03]} 38... Qf6 {[%clk 0:00:10.5]} 39. Bf5 {[%clk 0:00:03]}
39... Bxb2 {[%clk 0:00:08.1]} 40. Rxd8+ {[%clk 0:00:03.1]} 40... Qxd8 {[%clk
0:00:08.3]} 41. h3 {[%clk 0:00:04]} 41... Bf6 {[%clk 0:00:07.3]} 42. Qb1 {[%clk
0:00:02.3]} 42... b2 {[%clk 0:00:07.7]} 43. Kh2 {[%clk 0:00:02.8]} 43... c4
{[%clk 0:00:08]} 44. Be4 {[%clk 0:00:02.9]} 44... c3 {[%clk 0:00:08.9]} 45. Bc2
{[%clk 0:00:03.1]} 45... Qd6+ {[%clk 0:00:09.1]} 46. Kg1 {[%clk 0:00:03]} 46...
Qf4 {[%clk 0:00:09.7]} 47. Bd3 {[%clk 0:00:03]} 47... Bd4+ {[%clk 0:00:10.1]}
48. Kh1 {[%clk 0:00:03.3]} 48... Qe3 {[%clk 0:00:10]} 49. Qc2 {[%clk 0:00:02.5]}
49... Qg1# {[%clk 0:00:09.7]} 0-1

[Event "*** Titled Tuesday Blitz"]
[Site "Chess.com"]
[Date "2021.04.27"]
[Round "4"]
[White "elextranjero00"]
[Black "DenLaz"]
[Result "1/2-1/2"]
[WhiteElo "2570"]
[BlackElo "2813"]
[TimeControl "180+1"]
[EndTime "10:40:00 PDT"]
[Termination "Game drawn by repetition"]

1. e4 {[%clk 0:03:00.9]} 1... e5 {[%clk 0:02:59.8]} 2. Nf3 {[%clk 0:03:00.5]}
2... Nc6 {[%clk 0:03:00.2]} 3. Bc4 {[%clk 0:03:00.5]} 3... Bc5 {[%clk
0:02:59.8]} 4. d3 {[%clk 0:02:59.7]} 4... Nf6 {[%clk 0:03:00.4]} 5. c3 {[%clk
0:02:59]} 5... d6 {[%clk 0:02:59.6]} 6. a4 {[%clk 0:02:56.5]} 6... a6 {[%clk
0:02:59.2]} 7. O-O {[%clk 0:02:51.5]} 7... h6 {[%clk 0:02:58.4]} 8. Nbd2 {[%clk
0:02:46.8]} 8... O-O {[%clk 0:02:58.6]} 9. h3 {[%clk 0:02:42.2]} 9... Be6 {[%clk
0:02:52.6]} 10. Bxe6 {[%clk 0:02:31.1]} 10... fxe6 {[%clk 0:02:53.5]} 11. b4
{[%clk 0:02:30.7]} 11... Ba7 {[%clk 0:02:53]} 12. Re1 {[%clk 0:02:26.2]} 12...
Nh5 {[%clk 0:02:52.5]} 13. Ra2 {[%clk 0:02:10.1]} 13... Qe8 {[%clk 0:02:47.4]}
14. Nf1 {[%clk 0:01:56.1]} 14... Nf4 {[%clk 0:02:42.5]} 15. Bxf4 {[%clk
0:01:55.4]} 15... Rxf4 {[%clk 0:02:43.4]} 16. b5 {[%clk 0:01:48.9]} 16... Ne7
{[%clk 0:02:21.5]} 17. d4 {[%clk 0:01:46.6]} 17... exd4 {[%clk 0:02:13.6]} 18.
cxd4 {[%clk 0:01:46.3]} 18... axb5 {[%clk 0:02:14.1]} 19. axb5 {[%clk
0:01:43.9]} 19... Bb6 {[%clk 0:02:03.5]} 20. Rxa8 {[%clk 0:01:36.8]} 20... Qxa8
{[%clk 0:02:04.4]} 21. Qb3 {[%clk 0:01:34.9]} 21... Qc8 {[%clk 0:02:03.9]} 22.
Ng3 {[%clk 0:01:30.1]} 22... Kh7 {[%clk 0:01:59.3]} 23. Qc2 {[%clk 0:01:05.8]}
23... Kh8 {[%clk 0:01:36.7]} 24. Kh2 {[%clk 0:00:49]} 24... Qf8 {[%clk
0:01:34.1]} 25. Re3 {[%clk 0:00:47.8]} 25... Qf7 {[%clk 0:01:25.4]} 26. Rc3
{[%clk 0:00:45.1]} 26... Qe8 {[%clk 0:00:57.4]} 27. Qa2 {[%clk 0:00:42.8]} 27...
Ng6 {[%clk 0:00:55.5]} 28. Qe2 {[%clk 0:00:28.4]} 28... Rf7 {[%clk 0:00:54]} 29.
e5 {[%clk 0:00:24.2]} 29... Nf4 {[%clk 0:00:49.1]} 30. Qe4 {[%clk 0:00:23.4]}
30... d5 {[%clk 0:00:45.6]} 31. Qb1 {[%clk 0:00:22.3]} 31... Rf8 {[%clk
0:00:39.2]} 32. Rb3 {[%clk 0:00:20.6]} 32... g5 {[%clk 0:00:35.1]} 33. Qc2
{[%clk 0:00:19.6]} 33... Qg6 {[%clk 0:00:33.1]} 34. Qxg6 {[%clk 0:00:14.7]}
34... Nxg6 {[%clk 0:00:34]} 35. Nh5 {[%clk 0:00:15.1]} 35... Ne7 {[%clk
0:00:31.7]} 36. Nf6 {[%clk 0:00:14.5]} 36... Ra8 {[%clk 0:00:30.8]} 37. Rc3
{[%clk 0:00:12.7]} 37... Rd8 {[%clk 0:00:25.9]} 38. h4 {[%clk 0:00:12.7]} 38...
gxh4 {[%clk 0:00:22.6]} 39. Nxh4 {[%clk 0:00:12.8]} 39... Kg7 {[%clk 0:00:14.6]}
40. Rg3+ {[%clk 0:00:11.7]} 40... Kf7 {[%clk 0:00:14.4]} 41. Nf3 {[%clk
0:00:12.3]} 41... Nf5 {[%clk 0:00:13.4]} 42. Rg4 {[%clk 0:00:12.9]} 42... Ra8
{[%clk 0:00:11.9]} 43. Rf4 {[%clk 0:00:12.3]} 43... Kg6 {[%clk 0:00:10.6]} 44.
g4 {[%clk 0:00:12.1]} 44... Ne7 {[%clk 0:00:10.8]} 45. Nh4+ {[%clk 0:00:11.3]}
45... Kg7 {[%clk 0:00:10.9]} 46. Nh5+ {[%clk 0:00:08.7]} 46... Kg8 {[%clk
0:00:11.3]} 47. Nf6+ {[%clk 0:00:07.5]} 47... Kh8 {[%clk 0:00:11.5]} 48. Nh5
{[%clk 0:00:04.9]} 48... Kg8 {[%clk 0:00:08.8]} 49. Nf6+ {[%clk 0:00:04.7]}
49... Kh8 {[%clk 0:00:06.1]} 50. Nh5 {[%clk 0:00:04.9]} 50... Kg8 {[%clk
0:00:06]} 1/2-1/2